Cogmind - Beta 17.1 @@@ ROGUE MODE // 2026.09.21 @ 12:32:15 Player: Caluan Result: Destroyed by Autobeam Turret with Autobeam Performance ------------- Evolutions (0) 0 Regions Visited (3) 600 Robots Destroyed (24) 120 Value Destroyed (522) 522 Prototype IDs (0) 0 Alien Tech Used (0) 0 Bonus (160) 160 TOTAL SCORE: 1402 Bonus ------- Follower Combat Kills 160 Cogmind --------- Core Integrity 0/250 Matter 264/300 Energy 200/200 System Corruption 1% Temperature Cool (6) Movement Treading (240) Ox1 Location -10/Subcaves Parts ------- > --- POWER (1) -------- Subdweller Power Source > --- PROPULSION (2) --- Light Treads Light Treads > --- UTILITY (2) ------ High-capacity Storage Unit Light Armor Plating > --- WEAPON (2) ------- Subdweller Laser Assault Rifle > --- INVENTORY (20) --- Light Treads Light Treads Light Treads Compact Wheel Improved Heat Sink Huge Storage Unit High-capacity Matter Pod (200) EM Pulse Gun EM Pulse Gun Medium Laser Assault Rifle Light Assault Rifle Datajack Mining Laser Hammer Makeshift Sword Peak State ------------ > --- POWER ------------ Subdweller Power Source > --- PROPULSION ------- Light Treads Light Treads > --- UTILITY ---------- High-capacity Storage Unit Light Armor Plating > --- WEAPON ----------- Assault Rifle Subdweller Machine Gun > --- INVENTORY -------- Light Treads Light Treads Light Treads Light Treads Compact Wheel Improved Heat Sink Huge Storage Unit High-capacity Matter Pod EM Pulse Gun EM Pulse Gun Medium Laser Subdweller Laser Assault Rifle Light Assault Rifle Datajack Mining Laser Hammer Makeshift Sword [Rating: 11] Favorites ----------- Power Ion Engine Engine Ion Engine Propulsion Light Treads Treads Light Treads Utility High-capacity Storage Unit Device Seismic Detector Storage High-capacity Storage Unit Protection Light Armor Plating Weapon Light Assault Rifle Energy Gun Subdweller Laser Ballistic Gun Light Assault Rifle Special Weapon Mining Laser Build | -11 -10 -10 -10 ------- Run | Yrd Mat Min Sub Slots Evolved . | . . . . Power . | . . . . Propulsion . | . . . . Utility . | . . . . Weapon . | . . . . Parts Attached 20 | 6 5 3 6 Power 3 | 1 1 . 1 Engine 3 | 1 1 . 1 Core . | . . . . Reactor . | . . . . Propulsion 5 | 2 . 2 1 Treads 5 | 2 . 2 1 Leg . | . . . . Wheel . | . . . . Hover . | . . . . Flight . | . . . . Utility 4 | 1 2 . 1 Device 1 | . 1 . . Storage 2 | 1 1 . . Processor . | . . . . Hackware . | . . . . Protection 1 | . . . 1 Artifact . | . . . . Weapon 8 | 2 2 1 3 Energy Gun 1 | . . . 1 Energy Cannon . | . . . . Ballistic Gun 6 | 2 2 . 2 Ballistic Cannon . | . . . . Launcher . | . . . . Special Weapon 1 | . . 1 . Impact Weapon . | . . . . Slashing Weapon . | . . . . Piercing Weapon . | . . . . Special Melee Weapon . | . . . . Unidentified Prototypes . | . . . . Parts Lost 5 | . 1 2 2 Power 2 | . 1 . 1 Propulsion 2 | . . 2 . Utility 1 | . . . 1 Weapon . | . . . . Highest Loss Streak 2 | . 1 1 2 To Critical Strikes . | . . . . Average Backups 14 | 1 10 18 19 Power . | . . . . Propulsion 3 | . 2 6 4 Utility 2 | . 1 3 3 Weapon 6 | . 4 7 8 Tool/Special . | . . . . Unused Backups 15 | . 1 . 14 Power . | . . . . Propulsion 4 | . . . 4 Utility 4 | . 1 . 3 Weapon 6 | . . . 6 Tool/Special 1 | . . . 1 Average Slot Usage (%) 99 | . 99 99 100 Engine 14 | . 14 14 14 Treads 27 | . 27 27 28 Device 13 | . 13 14 11 Storage 14 | . 14 14 14 Ballistic Gun 26 | . 27 27 23 Peak Build Rating 11 | 6 9 9 11 Average Rating 8 | 4 7 8 10 On Entrance 6 | . 6 9 9 Avg Prop Armor Cover (%) . | . . . . Naked Turns . | . . . . Heaviest Build 54 | 12 52 49 54 Greatest Support 40 | 40 40 40 40 Greatest Overweight (x) 1 | . 1 1 1 Average Overweight (x) . | . . 1 1 Largest Inventory Capacity 20 | 8 20 20 20 Average Capacity 19 | 6 19 20 20 Most Carried 20 | 5 18 19 20 Average Carried 14 | 1 10 18 19 Final Capacity 20 | 8 20 20 20 Final Carried 18 | 3 18 18 16 Class Distribution -------------------- 100% | Mutant Dominant Class ---------------- Mutant | -10/Materials Mutant | -10/Mines Mutant | -10/Subcaves Resources | -11 -10 -10 -10 ----------- Run | Yrd Mat Min Sub Matter Collected 1006 | 227 280 336 163 Remotely . | . . . . Salvage Created 883 | . 690 81 112 Parts 43 | . 31 2 10 Haulers Intercepted 2 | . 2 . . Recyclers Shooed . | . . . . Parts Field Recycled . | . . . . Retrieved Matter . | . . . . Parts Self-Destructed 18 | . . . 18 Prevented . | . . . . Parts Restored . | . . . . Kills | -11 -10 -10 -10 ------- Run | Yrd Mat Min Sub Combat Hostiles Destroyed 24 | . 15 6 3 Guns 24 | . 15 6 3 Classes Destroyed 10 | . 5 2 3 Worker 1 | . . 1 . Hauler 2 | . 2 . . Recycler 1 | . 1 . . Operator 1 | . 1 . . Turret 1 | . . . 1 Swarmer 8 | . 6 . 2 Grunt 9 | . 9 . . Artisan 1 | . . . 1 Subdweller 1 | . . . 1 Assembled 6 | . . 6 . Best Kill Streak 4 | . 4 2 2 Combat Bots Only 3 | . 3 2 2 Max Kills in Single Turn 1 | . 1 1 1 Gunslinging . | . . . . Exploded . | . . . . Melee . | . . . . Uniques/NPCs Destroyed . | . . . . Combat | -11 -10 -10 -10 -------- Run | Yrd Mat Min Sub Hostile Shots Fired 183 | . 78 27 78 Missed 53 | . 16 9 28 Hits 130 | . 62 18 50 Melee 3 | . . 3 . Projectile 127 | . 62 15 50 Critical Strikes 1 | . . . 1 Part Disruptions 2 | . . 2 . Damage Taken 1474 | . 705 278 491 Core 253 | . 129 26 98 Absorbed by Shields . | . . . . Regen/Repaired (Parts) 204 | . 204 . . Core Remaining (%) 100 | 100 . . . Volleys Fired 129 | . 58 36 35 Largest 2 | . 2 2 2 Hottest 100 | . 40 100 100 Shots Fired 233 | . 117 59 57 Gun 217 | . 117 50 50 Cannon . | . . . . Launcher . | . . . . Special 16 | . . 9 7 Kinetic 206 | . 117 50 39 Thermal 27 | . . 9 18 Explosive . | . . . . Electromagnetic . | . . . . Robot Hit Streak 21 | . 21 6 7 Robot Miss Streak 3 | . 2 3 2 Penetration Max . | . . . . Secondary Targets 3 | . 2 1 . Max Gunslinging Chain 1 | . 1 1 . Shots Hit Robots 144 | . 84 29 31 Core Hits 58 | 1 37 15 5 Critical Kills 1 | . 1 . . Critical Parts Destroyed 1 | . 1 . . Critical Strikes 2 | . 2 . . Destroy 2 | . 2 . . Melee Attacks . | . . . . Impact . | . . . . Slashing . | . . . . Piercing . | . . . . Sneak Attacks . | . . . . Combat Hostiles . | . . . . Follow-up Attacks . | . . . . Damage Inflicted 1627 | 3 827 328 469 Guns 1593 | . 821 303 469 Cannons . | . . . . Explosions . | . . . . Melee . | . . . . Ramming 34 | 3 6 25 . Kinetic 1468 | . 821 303 344 Thermal 125 | . . . 125 Explosive . | . . . . Electromagnetic . | . . . . Impact . | . . . . Slashing . | . . . . Piercing . | . . . . Highest Corruption 1 | . 1 1 1 Average Corruption 1 | . 1 1 1 Corruption Purged . | . . . . Corruption Blocked . | . . . . Effects 23 | . 5 13 5 Message Errors 4 | . 2 2 . Matter Fused 6 | . 1 4 1 Heat Flow Errors 3 | . . 3 . Energy Discharges 4 | . 1 2 1 Parts Rejected 1 | . . 1 . Data Loss (minor) 1 | . . 1 . Data Loss (major) 2 | . . . 2 Misfires 2 | . 1 . 1 Overload Shots . | . . . . Overflow Damage . | . . . . Projectiles . | . . . . Explosions . | . . . . Melee . | . . . . Knockbacks . | . . . . Impact . | . . . . Kinetic . | . . . . Secondary . | . . . . Self-Inflicted Damage . | . . . . Shots . | . . . . Rammed 6 | 1 2 3 . Targets Rammed 7 | 1 2 4 . Kicked . | . . . . Crushed 1 | . . 1 . Highest Temperature 249 | . 18 249 7 Average Temperature 41 | . 7 61 1 Received Heat Transfer 600 | . 309 120 171 Siege Activations . | . . . . Martial Activations . | . . . . Shielding Activations . | . . . . Robots Disrupted . | . . . . Combat Hostiles . | . . . . Robots Corrupted . | . . . . Combat Hostiles . | . . . . Parts Fried . | . . . . Impact Corruptions . | . . . . Robots Melted . | . . . . Combat Hostiles . | . . . . Parts Melted . | . . . . Heat Transferred 150 | . . . 150 Parts Sabotaged . | . . . . Parts Stolen . | . . . . Parts Stripped . | . . . . Power Chain Reactions . | . . . . Alert | -11 -10 -10 -10 ------- Run | Yrd Mat Min Sub Maximum Alert Level . | . . . . Low Security (%) 100 | 100 100 100 . Level 1 . | . . . . Level 2 . | . . . . Level 3 . | . . . . Level 4 . | . . . . Level 5 . | . . . . High Security . | . . . . Max Security . | . . . . Peak Influence 84 | . 84 13 . Initial 13 | . . 13 . Average 12 | . 18 . . Influence Increases 615 | . 413 6 196 Destroy 0b10 Robot/C 400 | . 300 . 100 Destroy 0b10 Robot/NC 25 | . 20 5 . Destroy Leader 64 | . 64 . . Allied During Kill 7 | . . 1 6 Successful Hack 29 | . 29 . . Lose Combat Pursuer 90 | . . . 90 Influence Decreases 545 | . 378 41 126 Entered New Map 22 | . . 22 . Time Decay 489 | . 374 19 96 Lost Part 14 | . 4 . 10 Lost Ally 20 | . . . 20 Squads Dispatched 1 | . 1 . . Investigation . | . . . . Extermination . | . . . . Reinforcement 1 | . 1 . . Assault . | . . . . Garrison . | . . . . Intercept . | . . . . Searches Triggered . | . . . . Construction Impeded . | . . . . Haulers Reinforced . | . . . . Active Scanning Responses . | . . . . Cargo Convoy Interrupts . | . . . . Stealth | -11 -10 -10 -10 --------- Run | Yrd Mat Min Sub Distress Signals 1 | . 1 . . Communications Jammed . | . . . . Distress Signals . | . . . . Times Spotted 51 | . 28 9 14 Peak Tracking Total 4 | . 3 2 4 Tactical Retreats 3 | . . . 3 Traps | -11 -10 -10 -10 ------- Run | Yrd Mat Min Sub Traps Triggered 1 | . 1 . . Indirectly . | . . . . Trap Hack Attempts . | . . . . Triggered . | . . . . Disarmed 4 | . 4 . . Reprogrammed . | . . . . Reused . | . . . . Traps Extracted . | . . . . Installed . | . . . . Triggered . | . . . . Machines | -11 -10 -10 -10 ---------- Run | Yrd Mat Min Sub Machines Disabled 1 | . . . 1 Max in Single Turn 1 | . . . 1 Machines Repaired . | . . . . Machines Dismantled . | . . . . Machines Sabotaged . | . . . . Overloaded Fab Kills . | . . . . Hacking | -11 -10 -10 -10 --------- Run | Yrd Mat Min Sub Machines Accessed 8 | . 8 . . Terminals 7 | . 7 . . Fabricators . | . . . . Repair Stations 1 | . 1 . . Recycling Units . | . . . . Scanalyzers . | . . . . Garrison Access . | . . . . Total Hacks 23 | . 23 . . Successful 11 | . 11 . . Failed 12 | . 12 . . Catastrophic . | . . . . Database Lockouts . | . . . . Manual 16 | . 16 . . Terminals 17 | . 17 . . Fabricators . | . . . . Repair Stations 6 | . 6 . . Recycling Units . | . . . . Scanalyzers . | . . . . Garrison Access . | . . . . Terminal Hacks 2 | . 2 . . Branch Access Points 1 | . 1 . . Disarm Traps 1 | . 1 . . Fabricator Hacks . | . . . . Repair Station Hacks 4 | . 4 . . Scan Component 2 | . 2 . . Repair 2 | . 2 . . Recycling Unit Hacks . | . . . . Scanalyzer . | . . . . Garrison Access Hacks . | . . . . Unauthorized Hacks 5 | . 5 . . Terminals 5 | . 5 . . Assimilate 1 | . 1 . . Botnet 4 | . 4 . . Fabricators . | . . . . Repair Stations . | . . . . Recycling Units . | . . . . Scanalyzers . | . . . . Garrison Access . | . . . . Data Cores Recovered . | . . . . Used . | . . . . Hacking Detections 5 | . 5 . . Full Trace Events . | . . . . Feedback Events . | . . . . Feedback Blocked . | . . . . Robot Schematics Acquired . | . . . . Robots Built . | . . . . Authchips . | . . . . Time . | . . . . Total Robot Build Rating . | . . . . Part Schematics Acquired . | . . . . Parts Built . | . . . . Authchips . | . . . . Time . | . . . . Total Part Build Rating . | . . . . Part Studies Acquired . | . . . . Parts Repaired 2 | . 2 . . Time 52 | . 52 . . Parts Recycled . | . . . . Recycled Matter . | . . . . Retrieved Matter . | . . . . Retrieved Components . | . . . . Parts Scanalyzed . | . . . . Part Schematics Acquired . | . . . . Parts Damaged . | . . . . Bothacking | -11 -10 -10 -10 ------------ Run | Yrd Mat Min Sub Used RIF Installer . | . . . . Robots Hacked . | . . . . Non-combat . | . . . . Combat . | . . . . Robot Hacks Applied . | . . . . Relay Couplers Released . | . . . . Fabnet Peak Effective % . | . . . . Robots Rewired . | . . . . Allies Hacked . | . . . . Hacks Repelled . | . . . . Allies | -11 -10 -10 -10 -------- Run | Yrd Mat Min Sub Total Allies 5 | . . 5 . Largest Group 5 | . . 5 3 Highest-Rated Group 90 | . . 90 63 Highest-Rated Ally 31 | . . 31 31 Total Orders . | . . . . Ally Attacks 67 | . . 18 49 Total Damage 843 | . . 254 589 Kills 9 | . . 3 6 Allies Corrupted . | . . . . Allies Melted . | . . . . Intel | -11 -10 -10 -10 ------- Run | Yrd Mat Min Sub Active Infowar (turns) 4485 | . 2462 1143 880 Seismic 4485 | . 2462 1143 880 Robot Analysis Total . | . . . . Derelict Logs Recovered 1 | . . 1 . Drone Launches . | . . . . Drone Recoveries . | . . . . Exploration | -11 -10 -10 -10 ------------- Run | Yrd Mat Min Sub Turns Passed 4833 | 89 2479 1143 1122 Spaces Moved 1798 | 56 908 421 413 Core 15 | 15 . . . Treads 1783 | 41 908 421 413 Legs . | . . . . Wheels . | . . . . Hover . | . . . . Flight . | . . . . Fastest Speed 50 | 50 160 240 240 Average Speed 236 | 130 239 240 240 Slowest Speed 240 | 160 240 240 240 Overloaded Moves . | . . . . Propulsion Burnouts . | . . . . Robots Hopped . | . . . . Potential Cave-ins . | . . . . Cave-ins Triggered . | . . . . Exploration Rate (%) 49 | 4 94 76 24 Regions Visited 3 Branch Regions 2 Pre-discovered Areas . | . . . . Known Exits Taken 1 | . 1 . . Unknown Exits Taken 2 | 1 . 1 . Scrap Searched 1 | . . 1 . Spaces Dug . | . . . . Terrain Destroyed . | . . . . Melee . | . . . . Projectile . | . . . . AOE . | . . . . Terrain Rammed . | . . . . Walls Destroyed . | . . . . Machines Disabled . | . . . . Actions | -11 -10 -10 -10 --------- Run | Yrd Mat Min Sub Total 2131 | 71 1112 476 472 Wait 133 | . 113 10 10 Move 1795 | 55 907 420 413 Hop . | . . . . Pick Up 35 | 9 21 2 3 Fast Attach 3 | . 2 1 . Attach 13 | 6 3 2 2 Detach . | . . . . Swap 9 | . 2 1 6 Drop 7 | . 4 . 3 Fire 129 | . 58 36 35 Melee . | . . . . Ram . | . . . . Kick . | . . . . Crush 7 | 1 2 4 . Escape Stasis . | . . . . Rewire . | . . . . Trap . | . . . . Miscellaneous . | . . . . Route ------- -11/Scrapyard -10/Materials (discovered 6 exits: *Mat x3 / *Min x2 / [*Sub]) -10/Mines (discovered 3 exits: *Mat x2 / [*Sub]) -10/Subcaves (discovered 1 exit: [*Rec]) History --------- Turn | Location | Event 5 | -11/Scrapyard | Discovered new exit (range 14) 90 | -11/Scrapyard | Entered Materials 314 | -10/Materials | Build established: Mutant 646 | -10/Materials | Discovered new exit (range 3) 856 | -10/Materials | Discovered new exit (range 8) 1133 | -10/Materials | Discovered new exit (range 15) 1606 | -10/Materials | Discovered new exit (range 8) 1775 | -10/Materials | Repaired Assault Rifle 1802 | -10/Materials | Repaired Lgt. Treads 2103 | -10/Materials | Discovered new exit (range 7) 2284 | -10/Materials | Identified exit to Mines 2318 | -10/Materials | Core integrity fell below 50% 2569 | -10/Materials | Entered Mines 2628 | -10/Mines | Assembled infested the area 2802 | -10/Mines | Assisted by bots powering up and referring to "LRC-V3" 2981 | -10/Mines | Identified exit to Materials 3067 | -10/Mines | A weapon hastily lodged in a ceiling crevice suddenly fell to the ground 3195 | -10/Mines | Found a Scrap Suit stashed away for nefarious purposes 3605 | -10/Mines | Discovered exit to Materials (range 14) 3702 | -10/Mines | Discovered new exit (range 3) 3712 | -10/Mines | Entered Subcaves 3712 | -10/Subcaves | Accompanied by 3 allies 3717 | -10/Subcaves | Led the pair of lost Derelicts to an unsafe place 3927 | -10/Subcaves | A swath of the cavern ceiling suddenly collapsed 4236 | -10/Subcaves | Ambushed by angry Subdweller bent on revenge 4599 | -10/Subcaves | Core integrity fell below 20% 4636 | -10/Subcaves | Discovered new exit (range 10) 4834 | -10/Subcaves | Destroyed by Autobeam Turret with Autobeam Last Messages --------------- repair. 04613_ Trooper 1b destroyed. 04615_ Flight Unit fries itself beyond repair. 04615_ S-10 Pest destroyed. 04627_ System corrupted: FCS attempts to trigger Sub. Laser. 04627_ System corrupted: Sub. Laser misfires. 04627_ Flight Unit fries itself beyond repair. 04635_ Dropped Broken Sub. Machine Gun. 04636_ Acquired 44 matter. 04636_ EXIT=FOUND 04647_ Destroyed Autobeam. 04653_ Acquired 10 matter. 04658_ Autobeam Turret destroyed. 04710_ System corrupted: Matter fused (-8). 04756_ Subatomizers dissect the Aluminum Leg. 04775_ Dropped Lgt. Treads. 04825_ System corrupted: Energy discharge (-60). Map ----- +----------------------------------------------------+ | ?????????????????????????????????????????????????? | | ?????????????????????????????????????????????????? | | ?????????????????????????????????????????????????? | | ?????????????????????????????????????????????????? | | ?????????????????????????????????????????????????? | | ??????????????????????????????????? ?????????????? | | ????????????????????????????????????"????????????? | | ????????????????????????????????????? ?######????? | | ???????##????????????????????????????? # #????? | | ??????## ?????????????????????????????? ##????? | | ?????## ??????????????????????????????## "#????? | | ?????# #?????????????????????#####?###" "###??? | | ?????# ###???????????????#### ### " #### | | ????## ##??????????????# # # | | ????# #????????????### # | | ????# ## #???????????## #### | | ???????## #####?????### # # ##?## | | ????????## # # #####?# #### ## #??# | | ???????### ## ### ##??## #### ######??## | | ???????# ## # #????####??# #????????# | | ???????### ## # # = #??????????#####?##?????# | | ????????##=&# ##### # #?######????????## ???# | | ????????# =%#& ##?### #? """#???????## ### | | ????????#& %&! #???# [## "#???????# | | ????????# ## ##???# =# "#????????# ## | | ????????#### ##????# @ t""#?????????????# # | | ????????# ##????# % % <###??????##### ? | | ????????# #?????# " ### ##??### #? | | ????????# ###### # "#? ##?# ## | | ????????# #### % #?# ##??# | | ????????# ##???"% " ### ^ #??## | | ???????## ######????######## #??## | | ??????## ###?????????????## #???# | | ??????# ##??????????????# ^ ^ ^##### | | ?????## #??????????????#"###" ""## ### | | ????## ### #??????????????????#" "### ### | | ????# #?## #??????????????#####" =% ["#?# # | | ????# ##??# #??????????????# # #" %&!### | | ????## #??? #??????????????## [% =&% | | ?????# ##?# ##??????????????# ## " &##" # | | ?????# ## #??????????????### #####" ####### | | ???### #??????????????# ####""""#?????## | | ???# ##??????????????# ##" "##??????# | | ???# ##???????????????# ### "#??????# | | ???## ##???????????????# ## ##?????# | | ????##### #???????????????#"""" "" ###??? | | ??????### #???????????????##"" ""##?? | | ??????# #????????????????###"# ## "" ##?# | | ??????# ##?????????????????#### ### "" #?? | | ?????#### #????????????????????# ## " ##?? | +----------------------------------------------------+ Best States ------------- Heat Dissipation 25 Energy Generation 15 Energy Capacity 250 Matter Stores 300 Matter Capacity 300 Sight Range 16 Terrain Scan Density 10 Armor Coverage 150 Evasion (%) 50 Recoil Reduction 2 Item Schematics ----------------- None Robot Schematics ------------------ None Fabricated ------------ Nothing Repaired ---------- Assault Rifle | 12% | -10/Materials Lgt. Treads | 17% | -10/Materials Studied --------- None Alien Tech Used ----------------- None Achievements -------------- Art Critic Challenges ------------ None Game ------ Seed PotentialControlStrikerail Manual? 0 Play Time 00:19:07 Cumulative 307.0 hours Start 2026.09.21 @ 12:00:35 End 2026.09.21 @ 12:32:15 Sessions 1 Manual Loads 0 Difficulty Rogue Special Mode None Game No. 328 Rogue 328 Adventurer 0 Explorer 0 Win Type - Total 3 Types 3/0/0/0/0/0/0/0/0/0 Lore% 33 Gallery% 58 Achievement% 44 Wizard Run 0 Options --------- Layout 1 ASCII 0 Keyboard 0 Movement Numpad Keybinds 0 Fullscreen 2 Font 24/Smallcaps Map View 50x35 Zoom Use 0% Tactical HUD 1 Map Filters NONE Filters NONE Steam 1 RUN: 34555178-86a0-400e-a707-8c031d2f6fe2